{"text_format":"1","workbook":"xlsx","n_sheets":1,"sheets":["Prototype A1"],"not_rendered":{"charts":0,"images":0,"macros":1,"external_links":0,"defined_names":23,"comments":0,"pivot_tables":0},"unopened":[],"bounds":{"document_bytes":16777216,"sheet_cells":100000,"rows_first":2000,"rows_last":500,"rows_between":2000,"halvings":0,"cell_chars":16384,"cell_head_chars":4096},"cells_cut":0,"cells_raw":0,"read":"whole","date_system":"1900"}

{"sheet":"Prototype A1","index":0,"n_rows":82,"n_cols":21,"rows_kept":82,"cut":false,"hidden":false,"merged":[[3,5,3,12],[3,13,3,20]]}
[]
["Output Results for Prescriptive Code Compliance Reference Design Qualitative Tests (Envelope Requirements shall use either U-Factor, or R-Values)"]
[]
[null,null,null,null,null,"Test Run 1 (Climate Zone 1)",null,null,null,null,null,null,null,"Test Run 2 (Climate Zone 2)"]
[null,"TYPE","Description of Component","UNITS","MIN / MAX","Sizing Results","Proposed Design","ASHRAE's Criteria","Meet ASHRAE's Req. (Pass/Fail)","Software Meets ASHRAE's Req. (Pass/Fail)","FEC's Criteria","Meet FEC's Req. (Pass/Fail)","Software Meets FEC's Req. (Pass/Fail)","Sizing Results","Proposed Design","ASHRAE's Criteria","Meet ASHRAE's Req. (Pass/Fail)","Software Meets ASHRAE's Req. (Pass/Fail)","FEC's Criteria","Meet FEC's Req. (Pass/Fail)","Software Meets FEC's Req. (Pass/Fail)"]
["Envelope Components"]
[null,"Wall","Exterior Wall: U-Value","Btu/(h-ft2-°F)","MAX",null,0.06,8.8999999999999996E-2,"Pass","Pass",6.4000000000000001E-2,"Pass","Pass",null,0.06,8.8999999999999996E-2,"Pass","Pass",6.4000000000000001E-2,"Pass","Pass"]
[null,"Wall","Exterior Wall: Insulation R-Value","(h-ft2-°F)/Btu","MIN",null,"R-13","R-13","Pass","N/A","R-13+R-3.8ci or R-20","Fail","N/A",null,{"$f":"G8","v":"R-13"},"R-13","Pass","N/A","R-13+R-3.8ci or R-20","Fail","N/A"]
[null,"Floor","Floor Slab-on-grade: Unheated F-factor","Btu/(h-ft-°F)","MAX",null,0.7,0.73,"Pass","Pass",0.73,"Pass","Pass",null,0.7,0.73,"Pass","Pass",0.73,"Pass","Pass"]
[null,"Floor","Floor Slab-on-grade: Insulation R-Value","(h-ft2-°F)/Btu","MIN",null,"NR","NR","NR","NR","NR","NR","NR",null,"NR","NR","NR","NR","NR","NR","NR"]
[null,"Roof","Exterior Roof: U-Value","Btu/(h-ft2-°F)","MAX",null,0.05,6.3E-2,"Pass","Pass",4.8000000000000001E-2,"Fail","Pass",null,0.05,6.3E-2,"Pass","Pass",4.8000000000000001E-2,"Fail","Fail"]
[null,"Roof","Exterior Roof: Insulation R-Value","(h-ft2-°F)/Btu","MIN",null,"R-17 ci","R-15 ci","Pass","N/A","R-20 ci","Fail","N/A",null,"R-17 ci","R-20 ci","Fail","N/A","R-20 ci","Fail","N/A"]
[null,"Roof","Exterior Roof: Solar Reflectance","-","MIN",null,0.6,0.55000000000000004,"Pass","Pass",0.55000000000000004,"NA","Pass",null,0.6,0.55000000000000004,"Pass","Pass",0.55000000000000004,"NA","NA"]
[null,"Roof","Exterior Roof: Thermal Emittance","-","MIN",null,0.9,0.75,"Pass","Pass",0.75,"Pass","Pass",null,0.9,0.75,"Pass","Pass",0.75,"Pass","Pass"]
[null,"Fenestration","Exterior Window: U-Value","Btu/(h-ft2-°F)","MAX",null,0.9,1.2,"Pass","Pass",0.5,"Fail","Fail",null,0.6,0.75,"Pass","Pass",0.5,"Fail","Fail"]
[null,"Fenestration","Exterior Window: SHGC","-","MAX",null,0.19,0.25,"Pass","Pass",0.25,"Pass","Pass",null,0.19,0.25,"Pass","Pass",0.25,"Pass","Pass"]
[null,"Fenestration","Exterior Window: WWR","(%)","Max",null,30.56,40,"Pass","Pass",30,"Pass","Pass",null,{"$f":"G17","v":30.56},40,"Pass","Pass",30,"Pass","Pass"]
[null,"Fenestration","Window Area"]
[null,"Fenestration","South Window Area","ft2","MAX",null,550,720,"Pass","Pass",720,"Pass","Fail",null,{"$f":"G19","v":550},720,"Pass","Pass",720,"Pass","Fail"]
[null,"Fenestration","East Window Area","ft2","MAX",null,550,720,"Pass","Pass",720,"Pass","Fail",null,550,720,"Pass","Pass",720,"Pass","Fail"]
[null,"Fenestration","North Window Area","ft2","MAX",null,550,720,"Pass","Pass",720,"Pass","Fail",null,550,720,"Pass","Pass",720,"Pass","Fail"]
[null,"Fenestration","West Window Area","ft2","MAX",null,550,720,"Pass","Pass",720,"Pass","Fail",null,550,720,"Pass","Pass",720,"Pass","Fail"]
[null,"Skylight","Skylight Area","ft2","MAX",null,2250,1125,"Fail","Fail",675,"Fail","Fail",null,2250,1125,"Fail","Fail",675,"Fail","Fail"]
[null,"Skylight","Skylight: U-Value","Btu/(h-ft2-°F)","MAX",null,1,1.98,"Pass","Pass",0.75,"Fail","Fail",null,1,1.98,"Pass","Pass",0.65,"Fail","Fail"]
[null,"Skylight","Skylight: SHGC","-","MAX",null,0.25,0.19,"Fail","Fail",0.35,"Pass","Pass",null,0.25,0.19,"Fail","Fail",0.35,"Pass","Pass"]
[null,"Skylight","Skylight: Skylight-Roof Ratio","(%)","MAX",null,10,5,"Fail","Fail",3,"Fail","Fail",null,10,5,"Fail","Fail",3,"Fail","Fail (Percents are by zone)"]
[null,null,null,null,""]
["Interior Lighting",null,null,null,""]
[null,"Lighting","LPD: Building Area Method","W/ft2","MAX",null,0.75,0.9,"Pass","Pass",0.9,"Pass","Pass",null,{"$f":"G29","v":0.75},0.9,"Yes","Pass",0.9,"Yes","Pass"]
[null,null,null,null,""]
["Exterior Lighting",null,null,null,""]
[null,"Lighting","Exterior Total Lighting Allowance","W","MAX",null,846,870,"Pass","Pass",870,"Pass","Pass",null,{"$f":"G32","v":846},870,"Yes","Pass",870,"Yes","Pass"]
[null,null,null,null,""]
["Internal Loads",null,null,null,""]
[null,"Equipment","Internal Equipment Power Density","W/ft2","-",null,1,1,"Pass","Pass",1,"Pass","Pass",null,{"$f":"G35","v":1},1,"Pass","Pass",1,"Pass","Pass"]
[]
["HVAC System"]
[null,"HVAC","System Type",null,null,null,"Single Zone Packaged Airconditioner","Single Zone Packaged Airconditioner","Pass","Pass","Single Zone Packaged Airconditioner","Pass","Pass",null,{"$f":"G38","v":"Single Zone Packaged Airconditioner"},"Single Zone Packaged Airconditioner","Pass","Pass","Single Zone Packaged Airconditioner","Pass","Pass"]
[null,"Furnace","Warm-Air Furnace, Efficiency:"]
[null,null,"Electric Thermal Efficiency","%","MIN",null,100,null,"Pass","Pass",null,"Pass","Pass",null,{"$f":"G40","v":100},100,"Pass","Pass",100,"Pass","Pass"]
[]
[null,null,"Air-Conditioner Minimum Efficiency:"]
[null,"Cooling DX","North Zone System Efficiency: ASHRAE","EER / IEER","MIN",130.74799999999999,"12.8/12.9","11.2 / 11.4","Pass","Pass",null,null,null,138.43899999999999,"12.8/12.9","11.0 / 11.2","Pass","Pass"]
[null,"Cooling DX","North Zone System Efficiency: FEC","EER / IEER","MIN",130.74799999999999,"12.8/12.9",null,null,null,"11.2 / 11.4","Pass","Pass",138.43899999999999,"12.8/12.9",null,null,null,"11.0 / 11.2","Pass","Pass"]
[]
[null,"Cooling DX","South Zone System Efficiency: ASHRAE","EER / IEER","MIN",146.94399999999999,"12.8/12.9","11.0 / 11.2","Pass","Pass",null,null,null,158.87799999999999,"12.8/12.9","11.0 / 11.2","Pass","Pass"]
[null,"Cooling DX","South Zone System Efficiency: FEC","EER / IEER","MIN",146.94399999999999,"12.8/12.9",null,null,null,"11.0 / 11.2","Pass","Pass",158.87799999999999,"12.8/12.9",null,null,null,"11.0 / 11.2","Pass","Pass"]
[]
[null,"Cooling DX","East Zone System Efficiency: ASHRAE","EER / IEER","MIN",142.28700000000001,"12.8/12.9","11.0 / 11.2","Pass","Pass",null,null,null,148.51599999999999,"12.8/12.9","11.0 / 11.2","Pass","Pass"]
[null,"Cooling DX","East Zone System Efficiency: FEC","EER / IEER","MIN",142.28700000000001,"12.8/12.9",null,null,null,"11.0 / 11.2","Pass","Pass",148.51599999999999,"12.8/12.9",null,null,null,"11.0 / 11.2","Pass","Pass"]
[]
[null,"Cooling DX","West Zone System Efficiency: ASHRAE","EER / IEER","MIN",144.292,"12.8/12.9","11.0 / 11.2","Pass","Pass",null,null,null,155.64099999999999,"12.8/12.9","11.0 / 11.2","Pass","Pass"]
[null,"Cooling DX","West Zone System Efficiency: FEC","EER / IEER","MIN",144.292,"12.8/12.9",null,null,null,"11.0 / 11.2","Pass","Pass",155.64099999999999,"12.8/12.9",null,null,null,"11.0 / 11.2","Pass","Pass"]
[]
[null,"Cooling DX","Core Zone System Efficiency: ASHRAE","EER / IEER","MIN",930.32600000000002,"12.8/12.9","9.7 / 9.8","Pass","Pass",null,null,null,990.8,"12.8/12.9","9.7 / 9.8","Pass","Pass"]
[null,"Cooling DX","Core Zone System Efficiency: FEC","EER / IEER","MIN",930.32600000000002,"12.8/12.9",null,null,null,"9.7 / 9.8","Pass","Pass",990.75900000000001,"12.8/12.9",null,null,null,"9.7 / 9.8","Pass","Pass"]
[]
[]
[null,null,"Air Economizer (Yes, or No):"]
[null,"Air Economizer","North Zone System Economizer: ASHRAE ","-","-",{"$f":"CoolCapNorthZone","v":130.74799999999999},"No","No","Pass","N/A",null,null,null,{"$f":"CoolCapNorthZoneCZ2","v":138.43899999999999},"Yes","Yes","Pass","Pass"]
[null,"Air Economizer","North Zone System Economizer: FEC","-","-",{"$f":"CoolCapNorthZoneIECC","v":130.74799999999999},"No",null,null,null,"No","Pass","Pass",{"$f":"CoolCapNorthZoneIECCCZ2","v":138.43899999999999},"Yes",null,null,null,"Yes","Pass","Pass"]
[]
[null,"Air Economizer","South Zone System Economizer: ASHRAE ","-","-",{"$f":"CoolCapSouthZone","v":146.94399999999999},"No","No","Pass","N/A",null,null,null,{"$f":"CoolCapSouthZoneCZ2","v":158.87799999999999},"Yes","Yes","Pass","Pass"]
[null,"Air Economizer","South Zone System Economizer: FEC","-","-",{"$f":"CoolCapSouthZoneIECC","v":146.94399999999999},"No",null,null,null,"No","Pass","Pass",{"$f":"CoolCapSouthZoneIECCCZ2","v":158.87799999999999},"Yes",null,null,null,"Yes","Pass","Pass"]
[]
[null,"Air Economizer","East Zone System Economizer: ASHRAE ","-","-",{"$f":"CoolCapEastZone","v":142.28700000000001},"No","No","Pass","N/A",null,null,null,{"$f":"CoolCapEastZoneCZ2","v":148.51599999999999},"Yes","Yes","Pass","Pass"]
[null,"Air Economizer","East Zone System Economizer: FEC","-","-",{"$f":"CoolCapEastZoneIECC","v":142.28700000000001},"No",null,null,null,"No","Pass","Pass",{"$f":"CoolCapEastZoneIECCCZ2","v":148.51599999999999},"Yes",null,null,null,"Yes","Pass","Pass"]
[]
[null,"Air Economizer","West Zone System Economizer: ASHRAE ","-","-",{"$f":"CoolCapWestZone","v":144.292},"No","No","Pass","N/A",null,null,null,{"$f":"CoolCapWestZoneCZ2","v":155.64099999999999},"Yes","Yes","Pass","Pass"]
[null,"Air Economizer","West Zone System Economizer: FEC","-","-",{"$f":"CoolCapWestZoneIECC","v":144.292},"No",null,null,null,"No","Pass","Pass",{"$f":"CoolCapWestZoneIECCCZ2","v":155.64099999999999},"Yes",null,null,null,"Yes","Pass","Pass"]
[]
[null,"Air Economizer","Core Zone System Economizer: ASHRAE ","-","-",{"$f":"CoolCapCoreZone","v":930.32600000000002},"No","No","Pass","N/A",null,null,null,{"$f":"CoolCapCoreZoneCZ2","v":990.8},"Yes","Yes","Pass","Pass"]
[null,"Air Economizer","Core Zone System Economizer: FEC","-","-",{"$f":"CoolCapCoreZoneIECC","v":930.32600000000002},"No",null,null,null,"No","Pass","Pass",{"$f":"CoolCapCoreZoneIECCCZ2","v":990.75900000000001},"Yes",null,null,null,"Yes","Pass","Pass"]
[]
[]
["Service Water Heating"]
[null,"SWH","SWH Type","-","-",null,"Storage Water Heater","Storage Water Heater",null,null,"Storage Water Heater",null,null,null,{"$f":"G77","v":"Storage Water Heater"},"Storage Water Heater",null,null,"Storage Water Heater"]
[null,"SWH","Fuel Type","-","-",null,"Electric","Electric",null,null,"Electric",null,null,null,"Electric","Electric",null,null,"Electric"]
[null,null,null,null,null,null,null,null,null,null,null,null,null,null,0]
[null,null,null,null,null,null,null,null,null,null,null,null,null,null,0]
[null,"SWH","Size <= 12 kW, Energy Factor (EF)"," - ","MIN",11,0.89,0.86439999999999995,"Pass","Pass",0.86439999999999995,"Pass","Pass",14]
[null,"SWH","Size > 12 kW, Size > 20 gal, Standby Loss","Btu/h","MAX",{"$f":"SWHCapacity","v":11},null,null,null,null,null,null,null,{"$f":"SWHCapacityCZ2","v":14},290,333.05,"Pass","Pass (Baseline is 293.4)",293.39999999999998,"Pass","Pass"]